Workbook

Sheet Microservices
A1: MICROSERVICES
A2: Choisissez ici les microservices que vous voudriez proposer sur la plateforme en cochant sur la case à gauche. Ne choisissez celles-ci que dans 2 catégories de compétences MAXIMUM, et même si possible une seule pour rester spécialisé. Vous pouvez utiliser l'astuce dans la formation pour dépasser cette limite intelligemment. Les données calculées sont purement indicatives et ont vocation à changer, elles ne correspondent pas à une garantie mais donnent une idée plus ou moins vague des objectifs.
A3: Valeur espérée de C.A. mensuel | G3: =SUM(D4:D126) -> 0 | H3: Nombre d'heures estimées mensuelles | I3: =IF(G3/33.22<30,30,ROUND(G3/33.22,0)) -> 30
A4: Compétences en écriture
A5: Sél. | B5: Service | C5: Valeur | E5: moyenne | F5: référent | G5: Nom du service 35 caractères max, sans "je vais" et "pour 5 €" | H5: Votre "plus" produit | I5: Délais
A6: FALSE | B6: Rédaction d'articles | C6: =ROUND(F6*E6/9.177,-1) -> 1000 | D6: =IF(A6=TRUE,C6,0) -> 0 | E6: 21 | F6: 437
A7: FALSE | B7: Rédaction d'une page de vente | C7: 760 | D7: =IF(A7=TRUE,C7,0) -> 0 | E7: 100 | F7: 70
A8: FALSE | B8: Rédaction de fiches produits | C8: 650 | D8: =IF(A8=TRUE,C8,0) -> 0 | E8: 80 | F8: 75
A9: FALSE | B9: Rédaction de CV et lettres de motivation | C9: 150 | D9: =IF(A9=TRUE,C9,0) -> 0 | E9: 40 | F9: 34
A10: FALSE | B10: Rédaction d'un script vidéo | C10: 130 | D10: 0 | E10: 55 | F10: 21
A11: FALSE | B11: Création de slogans | C11: 90 | D11: 0 | E11: 25 | F11: 33
A12: FALSE | B12: Rédaction de conditions d'utilisation | C12: 70 | D12: 0 | E12: 30 | F12: 20
A13: FALSE | B13: Transcription de fichiers vidéo ou audio | C13: 70 | D13: 0 | E13: 45 | F13: 14
A14: FALSE | B14: Service de traduction | C14: 820 | D14: 0 | E14: 100 | F14: 75
A15: FALSE | B15: Résumer un écrit | C15: 50 | D15: 0 | E15: 50 | F15: 10
A16: FALSE | B16: Écriture de poésies | C16: =ROUND(F16*E16/9.177,-1) -> 10 | D16: 0 | E16: 10 | F16: 5
A17: FALSE | B17: Publier un avis sur un livre ou un produit | C17: 10 | D17: 0 | E17: 10 | F17: 10
A18: Compétences en graphisme
A19: FALSE | B19: Réaliser un portrait | C19: =ROUND(F19*E19/9.177,-1) -> 100 | D19: 0 | E19: 25 | F19: 35
A20: FALSE | B20: Dessiner une caricature | C20: =ROUND(F20*E20/9.177,-1) -> 220 | D20: 0 | E20: 20 | F20: 103
A21: FALSE | B21: Créer un avatar | C21: 20 | D21: 0 | E21: 5 | F21: 30
A22: FALSE | B22: Dessiner style Manga / Cartoon | C22: 40 | D22: 0 | E22: 20 | F22: 20
A23: FALSE | B23: Faire un montage photo | C23: 230 | D23: 0 | E23: 150 | F23: 14
A24: FALSE | B24: Réaliser un Pop-Art ou Typo-Art | C24: 140 | D24: 0 | E24: 40 | F24: 32
A25: FALSE | B25: Designer un logo | C25: 1140 | D25: 0 | E25: 70 | F25: 150
A26: FALSE | B26: Détourer photo | C26: 10 | D26: 0 | E26: 5 | F26: 20
A27: FALSE | B27: Transformer en vectoriel | C27: 40 | D27: 0 | E27: 25 | F27: 14
A28: FALSE | B28: Créer une couverture de livre | C28: 270 | D28: 0 | E28: 50 | F28: 50
A29: FALSE | B29: Créer une couverture de CD | C29: 340 | D29: 0 | E29: 50 | F29: 62
A30: FALSE | B30: Créer un objet 3D | C30: 30 | D30: 0 | E30: 50 | F30: 5
A31: FALSE | B31: Faire un mockup de produit | C31: 330 | D31: 0 | E31: 10 | F31: 300
A32: FALSE | B32: Créer des invitations et faire-parts | C32: 30 | D32: 0 | E32: 25 | F32: 10
A33: FALSE | B33: Faire un mockup d'une app ou site | C33: 80 | D33: 0 | E33: 15 | F33: 50
A34: FALSE | B34: Créer des modèles de tee-shirts | C34: 10 | D34: 0 | E34: 10 | F34: 10
A35: FALSE | B35: Créer des icônes | C35: 260 | D35: 0 | E35: 120 | F35: 20
A36: FALSE | B36: Créer un GeoFilter Snapchat | C36: 90 | D36: 0 | E36: 40 | F36: 20
A37: FALSE | B37: Créer une couverture Facebook, Youtube, Linkedin… | C37: 250 | D37: 0 | E37: 50 | F37: 45
A38: FALSE | B38: Créer une bannière de pub | C38: 100 | D38: 0 | E38: 20 | F38: 48
A39: FALSE | B39: Créer un overlay Twitch | C39: 80 | D39: 0 | E39: 70 | F39: 11
A40: FALSE | B40: Création de posts phrases de motivation | C40: 110 | D40: 0 | E40: 10 | F40: 100
A41: FALSE | B41: Design Facebook Ads | C41: 220 | D41: 0 | E41: 40 | F41: 50
A42: FALSE | B42: Créer des flyers et brochures | C42: 760 | D42: 0 | E42: 100 | F42: 70
A43: FALSE | B43: Créer des affiches | C43: 490 | D43: 0 | E43: 100 | F43: 45
A44: FALSE | B44: Mettre en page des cartes de visite | C44: 80 | D44: 0 | E44: 50 | F44: 15
A45: FALSE | B45: Créer la papeterie | C45: 270 | D45: 0 | E45: 50 | F45: 50
A46: FALSE | B46: Réaliser des infographies | C46: 330 | D46: 0 | E46: 50 | F46: 60
A47: Compétences en photographie
A48: FALSE | B48: Faire des retouches photo | C48: =ROUND(F48*E48/9.177,-1) -> 190 | D48: 0 | E48: 10 | F48: 170
A49: FALSE | B49: Coaching | C49: =ROUND(F49*E49/9.177,-1) -> 330 | D49: 0 | E49: 150 | F49: 20
A50: FALSE | B50: Vendre des photos libres de droits | C50: 80 | D50: 0 | E50: 15 | F50: 50
A51: FALSE | B51: Réaliser des mosaïques photos | C51: 30 | D51: 0 | E51: 15 | F51: 20
A52: Compétences en développement
A53: FALSE | B53: Création et customisation de thèmes | C53: =ROUND(F53*E53/9.177,-1) -> 350 | D53: 0 | E53: 65 | F53: 50
A54: FALSE | B54: Installer un site Wordpress | C54: =ROUND(F54*E54/9.177,-1) -> 980 | D54: 0 | E54: 150 | F54: 60
A55: FALSE | B55: Sécuriser ou réparer un site Wordpress | C55: 50 | D55: 0 | E55: 10 | F55: 50
A56: FALSE | B56: Migrer un site Wordpress | C56: 80 | D56: 0 | E56: 15 | F56: 50
A57: FALSE | B57: Installer un site Shopify ou Prestashop | C57: 1140 | D57: 0 | E57: 150 | F57: 70
A58: FALSE | B58: Créer une application pour mobile | C58: 330 | D58: 0 | E58: 500 | F58: 6
A59: FALSE | B59: Création Newsletter | C59: 170 | D59: 0 | E59: 20 | F59: 80
A60: Compétences en réseaux sociaux
A61: FALSE | B61: Créer une page fan | C61: =ROUND(F61*E61/9.177,-1) -> 300 | D61: 0 | E61: 40 | F61: 68
A62: FALSE | B62: Achat de followers, vues, like… | C62: =ROUND(F62*E62/9.177,-1) -> 1120 | D62: =IF(A62=TRUE,C62,0) -> 0 | E62: 30 | F62: 342
A63: FALSE | B63: Twitter sur votre compte | C63: 50 | D63: 0 | E63: 5 | F63: 100
A64: FALSE | B64: Community management | C64: 1130 | D64: 0 | E64: 150 | F64: 69
A65: FALSE | B65: Gestion de campagne Facebook Ads | C65: 1240 | D65: 0 | E65: 190 | F65: 60
A66: FALSE | B66: Donner votre avis complet (ex:Tripadvisor) | C66: 40 | D66: 0 | E66: 10 | F66: 40
A67: FALSE | B67: Contribuer sur crowdfunding | C67: 10 | D67: 0 | E67: 5 | F67: 10
A68: FALSE | B68: Poster des commentaires sur un blog ou RS | C68: 10 | D68: 0 | E68: 5 | F68: 20
A69: FALSE | B69: Création et alimentation d'un compte Pinterest | C69: 220 | D69: 0 | E69: 100 | F69: 20
A70: Compétences en marketing
A71: FALSE | B71: Article sur votre blog | C71: =ROUND(F71*E71/9.177,-1) -> 330 | D71: 0 | E71: 50 | F71: 60
A72: FALSE | B72: Faire un test produit sur votre blog | C72: 110 | D72: 0 | E72: 100 | F72: 10
A73: FALSE | B73: Insérer un lien sur votre blog | C73: 160 | D73: 0 | E73: 30 | F73: 50
A74: FALSE | B74: Faire de l'analyse stratégique | C74: 650 | D74: 0 | E74: 200 | F74: 30
A75: FALSE | B75: Rechercher un nom de domaine | C75: 20 | D75: 0 | E75: 10 | F75: 14
A76: FALSE | B76: Publier des backlinks | C76: 650 | D76: 0 | E76: 100 | F76: 60
A77: FALSE | B77: Attaché de presse | C77: 490 | D77: 0 | E77: 150 | F77: 30
A78: FALSE | B78: Rechercher des mots-clés pertinents | C78: 90 | D78: 0 | E78: 10 | F78: 80
A79: FALSE | B79: Optimiser le SEO d'un site | C79: 820 | D79: 0 | E79: 150 | F79: 50
A80: FALSE | B80: Gestion email / newsletter | C80: 440 | D80: 0 | E80: 100 | F80: 40
A81: FALSE | B81: Optimiser votre commerce local | C81: 540 | D81: 0 | E81: 100 | F81: 50
A82: FALSE | B82: Gérer une campagne Adwords | C82: 70 | D82: 0 | E82: 30 | F82: 20
A83: Compétences vocales
A84: FALSE | B84: Voix off | C84: =ROUND(F84*E84/9.177,-1) -> 1090 | D84: 0 | E84: 100 | F84: 100
A85: FALSE | B85: Coaching et cours de chant | C85: 110 | D85: 0 | E85: 50 | F85: 20
A86: FALSE | B86: Chant personnalisé | C86: 20 | D86: 0 | E86: 15 | F86: 10
A87: Compétences en vidéo
A88: FALSE | B88: Faire un montage vidéo | C88: =ROUND(F88*E88/9.177,-1) -> 140 | D88: 0 | E88: 50 | F88: 26
A89: FALSE | B89: Faire une intro vidéo ou animation 3D | C89: =ROUND(F89*E89/9.177,-1) -> 760 | D89: 0 | E89: 100 | F89: 70
A90: FALSE | B90: Faire une présentation en vidéo | C90: 160 | D90: 0 | E90: 50 | F90: 30
A91: FALSE | B91: Créer une animation (tableau blanc ou autres) | C91: 1050 | D91: 0 | E91: 150 | F91: 64
A92: FALSE | B92: Créer des infographies en vidéo | C92: 490 | D92: 0 | E92: 150 | F92: 30
A93: FALSE | B93: Faire les sous-titrages d'une vidéo | C93: 70 | D93: 0 | E93: 20 | F93: 30
A94: Compétences en bien-être, sport, cuisine ou spiritualité
A95: FALSE | B95: Coaching | C95: =ROUND(F95*E95/9.177,-1) -> 270 | D95: 0 | E95: 50 | F95: 50
A96: FALSE | B96: Fournir des recettes | C96: =ROUND(F96*E96/9.177,-1) -> 10 | D96: 0 | E96: 10 | F96: 10
A97: FALSE | B97: Donner des conseils personnalisés | C97: 20 | D97: 0 | E97: 10 | F97: 20
A98: FALSE | B98: Guider des séances (méditation, yoga…) | C98: 50 | D98: 0 | E98: 50 | F98: 10
A99: FALSE | B99: Voyance et astrologie | C99: 230 | D99: 0 | E99: 50 | F99: 43
A100: Compétences musicales
A101: FALSE | B101: Composition | C101: =ROUND(F101*E101/9.177,-1) -> 240 | D101: =IF(A101=TRUE,C101,0) -> 0 | E101: 100 | F101: 22
A102: FALSE | B102: Fournir des musiques libres de droits | C102: 10 | D102: 0 | E102: 5 | F102: 10
A103: Compétences informatiques
A104: FALSE | B104: Assistance informatique / nettoyage / optimisation | C104: =ROUND(F104*E104/9.177,-1) -> 160 | D104: 0 | E104: 15 | F104: 100
A105: FALSE | B105: Conversion de fichiers | C105: =ROUND(F105*E105/9.177,-1) -> 10 | D105: 0 | E105: 5 | F105: 20
A106: Aucune compétence particulière
A107: FALSE | B107: Assistant virtuel | C107: =ROUND(F107*E107/9.177,-1) -> 220 | D107: 0 | E107: 100 | F107: 20
A108: FALSE | B108: Photos sexy | C108: =ROUND(F108*E108/9.177,-1) -> 60 | D108: 0 | E108: 10 | F108: 54
A109: FALSE | B109: Vidéos drôles et blagues | C109: 130 | D109: 0 | E109: 10 | F109: 120
A110: FALSE | B110: Test en vidéo d'apps, de sites ou de jeu vidéo | C110: 40 | D110: 0 | E110: 10 | F110: 40
A111: FALSE | B111: Vendre des produits PLR | C111: 30 | D111: 0 | E111: 5 | F111: 51
A112: FALSE | B112: Faire des guides de réparation | C112: 50 | D112: 0 | E112: 5 | F112: 100
A113: FALSE | B113: Vente d'adresses email | C113: 170 | D113: 0 | E113: 30 | F113: 51
A114: FALSE | B114: Vendre des formations en PDF ou vidéo (grâce à PLR) | C114: 220 | D114: 0 | E114: 20 | F114: 100
A115: FALSE | B115: Sous-traiter des services SEO / Réseaux sociaux | C115: 650 | D115: 0 | E115: 10 | F115: 600
A116: FALSE | B116: Utilisation de templates pour votre service | C116: 440 | D116: 0 | E116: 20 | F116: 200
A117: Tes idées de microservices
D118: =C118 -> 0
D119: 0
D120: 0
D121: 0
D122: 0
D123: 0
D124: 0
D125: 0
D126: =C126 -> 0
